Cogmind - Beta 13 @@@ ROGUE MODE // 2024.05.02 @ 18:39:31 Player: Johnny2001 Result: Core destroyed Performance ------------- Evolutions (9) 4500 Regions Visited (18) 3600 Robots Destroyed (67) 335 Value Destroyed (3579) 3579 Prototype IDs (11) 220 Alien Tech Used (2) 400 Bonus (1394) 1394 TOTAL SCORE: 14028 Bonus ------- High Alert Combat Kills 20 Follower Combat Kills 74 Entered DSFs 1000 Met Data Miner 300 Cogmind --------- Core Integrity 0/1600 Matter 261/300 Energy 94/100 System Corruption 24% Temperature Cool (0) Movement Core (50) Location -1/Access Parts ------- > --- POWER (2) -------- (None) > --- PROPULSION (10) -- (None) > --- UTILITY (10) ----- Improved Target Analyzer Advanced Target Analyzer > --- WEAPON (3) ------- (None) > --- INVENTORY (5) ---- KE Penetrator Linear Accelerator Peak State ------------ > --- POWER ------------ Micro Antimatter Reactor Light Quantum Reactor > --- PROPULSION ------- Armored Medium Treads Armored Medium Treads Armored Medium Treads Biometal Leg Biometal Leg Biometal Leg Centrium Leg Centrium Leg Centrium Leg Centrium Leg > --- UTILITY ---------- Advanced Heat Sink Medium Storage Unit Improved Target Analyzer Improved Target Analyzer Core Analyzer Makeshift Transmission Jammer Advanced Transmission Jammer Advanced Reaction Control System Advanced Shield Generator Makeshift Hacking Suite > --- WEAPON ----------- Enhanced Quantum Rifle Enhanced Quantum Rifle Heavy Machine Gun > --- INVENTORY -------- Light Antimatter Reactor Micro Antimatter Reactor Myomer Leg Biometal Leg Biometal Leg Centrium Leg Centrium Leg Linear Accelerator Great Maul [Rating: 173] Favorites ----------- Power Micro Antimatter Reactor Engine Ion Engine Reactor Micro Antimatter Reactor Propulsion Advanced Treads Treads Advanced Treads Leg Centrium Leg Wheel Armored Huge Wheel Hover Unit Improved Antigrav System Utility Core Analyzer Device Improved Terrain Scanner Storage Medium Storage Unit Processor Core Analyzer Hackware System Shield Protection Improved Medium Armor Plating Weapon Gauss Rifle Energy Gun Particle Gun Energy Cannon Disruptor Cannon Ballistic Gun Gauss Rifle Ballistic Cannon Linear Accelerator Special Weapon Improved Plasma Cutter Impact Weapon Great Maul Slashing Weapon Power Sword Build | -11 -10 -10 -8 -7 -6 -6 -6 -5 -5 -5 -4 -4 -4 -3 -3 -2 -2 -1 ------- Run | Yrd Mat Sub Mat Fac Fac Low Dat Pro Fac DSF Fac Upp Upp Res Qua Res DSF Acc Slots Evolved 18 | . . . 4 2 2 . . . 2 . 2 . . 2 . 2 . 2 Power 1 | . . . . . . . . . . . 1 . . . . . . . Propulsion 8 | . . . 2 1 . . . . 1 . . . . 1 . 1 . 2 Utility 8 | . . . 2 . 2 . . . 1 . 1 . . 1 . 1 . . Weapon 1 | . . . . 1 . . . . . . . . . . . . . . Parts Attached 135 | 6 1 10 13 9 5 3 . 6 3 4 1 5 . 3 . . 14 52 Power 17 | 2 . . 2 1 1 . . 1 . . . . . . . . 2 8 Engine 7 | 2 . . 2 1 1 . . 1 . . . . . . . . . . Core . | . . . . . . . . . . . . . . . . . . . Reactor 10 | . . . . . . . . . . . . . . . . . 2 8 Propulsion 42 | 2 . 2 4 2 1 . . 2 . 4 . 1 . 2 . . 4 18 Treads 15 | . . 2 3 2 1 . . 1 . 4 . . . 2 . . . . Leg 18 | 2 . . 1 . . . . . . . . 1 . . . . 4 10 Wheel 1 | . . . . . . . . 1 . . . . . . . . . . Hover 8 | . . . . . . . . . . . . . . . . . . 8 Flight . | . . . . . . . . . . . . . . . . . . . Utility 40 | 1 . 4 6 2 3 1 . 1 3 . 1 2 . . . . 6 10 Device 14 | . . 1 2 . . . . . 2 . 1 1 . . . . 2 5 Storage 6 | 1 . 1 1 1 . . . . . . . . . . . . 1 1 Processor 7 | . . . . . 2 . . . . . . . . . . . 2 3 Hackware 3 | . . . 1 . . . . . 1 . . . . . . . . 1 Protection 10 | . . 2 2 1 1 1 . 1 . . . 1 . . . . 1 . Artifact . | . . . . . . . . . . . . . . . . . . . Weapon 36 | 1 1 4 1 4 . 2 . 2 . . . 2 . 1 . . 2 16 Energy Gun 11 | . 1 . . 1 . . . . . . . 1 . . . . 2 6 Energy Cannon 1 | . . . . . . . . 1 . . . . . . . . . . Ballistic Gun 13 | 1 . 3 1 3 . 1 . . . . . . . . . . . 4 Ballistic Cannon 2 | . . 1 . . . . . . . . . . . . . . . 1 Launcher . | . . . . . . . . . . . . . . . . . . . Special Weapon 2 | . . . . . . . . . . . . 1 . . . . . 1 Impact Weapon 6 | . . . . . . 1 . 1 . . . . . 1 . . . 3 Slashing Weapon 1 | . . . . . . . . . . . . . . . . . . 1 Piercing Weapon . | . . . . . . . . . . . . . . . . . . . Special Melee Weapon . | . . . . . . . . . . . . . . . . . . . Unidentified Prototypes 2 | . . . . . . 1 . . . . . . . . 1 . . . Parts Lost 82 | . . 1 1 . 1 . . 16 . 1 . . 1 . 1 . 5 55 Power 9 | . . . . . . . . 2 . . . . . . . . . 7 Propulsion 33 | . . . . . 1 . . 7 . . . . . . 1 . 1 23 Utility 23 | . . 1 1 . . . . 2 . 1 . . . . . . 4 14 Weapon 17 | . . . . . . . . 5 . . . . 1 . . . . 11 Highest Loss Streak 31 | . . 1 1 . 1 . . 9 . 1 . . 1 . 1 . 3 31 To Critical Strikes 4 | . . . . . . . . . . . . . . . . . . 4 Average Slot Usage (%) 85 | . 85 85 93 99 99 99 100 90 23 26 40 50 67 56 53 47 75 88 Engine 5 | . 14 14 9 7 6 6 6 4 . . . . . . . . . . Reactor 1 | . . . . . . . . . . . . . . . . . 6 7 Treads 22 | . . 27 33 37 32 33 33 26 . 8 21 21 21 18 19 17 14 5 Leg 6 | . 28 . 2 . . . . . . . . 1 5 4 1 . 14 24 Device 6 | . . 3 7 7 6 6 6 6 5 1 3 6 10 9 9 8 7 12 Storage 5 | . 14 3 9 7 6 6 6 6 . . . . . . . . 1 5 Processor 8 | . . . . . 13 13 13 13 11 11 10 10 10 9 9 8 14 13 Hackware 4 | . . . 5 7 6 6 6 5 5 5 5 5 5 4 4 4 4 5 Protection 4 | . . 10 8 6 6 5 6 5 . . . 1 5 4 4 4 1 . Energy Gun 3 | . 14 2 . 7 6 . . . . . . 1 5 1 . . 5 5 Ballistic Gun 11 | . 14 21 18 15 13 19 20 15 . . . . . . . . . 2 Naked Turns . | . . . . . . . . . . . . . . . . . . . Heaviest Build 65 | 11 12 28 39 38 40 41 40 41 1 1 10 19 19 18 18 18 53 65 Greatest Support 120 | 20 20 40 84 106 108 108 108 108 3 81 27 27 20 54 54 54 120 86 Greatest Overweight (x) 4 | 1 . . . . . . . 4 . . 3 . . . . . . 4 Average Overweight (x) . | . . . . . . . . . . . . . . . . . . . Largest Inventory Capacity 10 | 8 8 8 8 10 10 10 10 10 10 5 5 5 5 5 5 5 10 10 Average Capacity 8 | 7 8 5 8 9 10 10 10 10 5 5 5 5 5 5 5 5 6 9 Most Carried 10 | 7 6 8 8 10 10 10 10 10 5 5 5 5 5 5 5 5 9 10 Average Carried 7 | 4 6 5 7 9 9 9 10 8 4 5 5 4 5 4 5 5 5 8 Final Capacity 10 | 8 8 5 8 10 10 10 10 10 5 5 5 5 5 5 5 5 10 5 Final Carried 10 | 7 6 5 8 10 10 10 10 5 5 5 5 5 5 5 5 5 9 2 Class Distribution -------------------- 53% | Mutant 29% | Gunner 7% | Tank 5% | Scavenger-Gunner Dominant Class ---------------- Mutant | -10/Materials Mutant | -10/Subcaves Mutant | -8/Materials Tank | -7/Factory Gunner | -6/Factory Gunner | -6/Lower Caves Gunner | -6/Data Miner Gunner | -5/Proximity Caves Gunner | -5/Factory Mutant | -5/DSF Mutant | -4/Factory Mutant | -4/Upper Caves Mutant | -4/Upper Caves Mutant | -3/Research Mutant | -3/Quarantine Mutant | -2/Research Mutant | -2/DSF Mutant | -1/Access Resources | -11 -10 -10 -8 -7 -6 -6 -6 -5 -5 -5 -4 -4 -4 -3 -3 -2 -2 -1 ----------- Run | Yrd Mat Sub Mat Fac Fac Low Dat Pro Fac DSF Fac Upp Upp Res Qua Res DSF Acc Matter Collected 2629 | 202 . 225 237 68 145 142 . 340 . . . 125 . . . . 99 1046 Remotely . | . . . . . . . . . . . . . . . . . . . Salvage Created 3513 | . . 217 406 68 166 73 . 472 . . . 131 . . . . 111 1869 Parts 180 | . . 8 27 4 14 4 . 14 . . . 3 . . . . 3 103 Haulers Intercepted . | . . . . . . . . . . . . . . . . . . . Recyclers Shooed . | . . . . . . . . . . . . . . . . . . . Parts Field Recycled . | . . . . . . . . . . . . . . . . . . . Retrieved Matter . | . . . . . . . . . . . . . . . . . . . Parts Self-Destructed 22 | . . 1 . . . 4 . 17 . . . . . . . . . . Prevented 1 | . . . . . . . . . . . . 1 . . . . . . Kills | -11 -10 -10 -8 -7 -6 -6 -6 -5 -5 -5 -4 -4 -4 -3 -3 -2 -2 -1 ------- Run | Yrd Mat Sub Mat Fac Fac Low Dat Pro Fac DSF Fac Upp Upp Res Qua Res DSF Acc Combat Hostiles Destroyed 63 | . . 5 13 1 2 1 . 9 . . . . . . . . 1 31 Guns 54 | . . 5 13 1 2 1 . 8 . . . . . . . . 1 23 Cannons 6 | . . . . . . . . . . . . . . . . . . 6 AOE 1 | . . . . . . . . . . . . . . . . . . 1 Classes Destroyed 11 | . . 1 3 . 2 1 . 2 . . . . . . . . 1 1 Worker 1 | . . . . . . . . . . . . . . . . . . 1 Builder 3 | . . . . . 1 . . . . . . . . . . . . 2 Drone 1 | . . . . . . . . 1 . . . . . . . . . . Swarmer 13 | . . . 6 . . . . 1 . . . . . . . . . 6 Grunt 17 | . . . 5 . . . . 6 . . . . . . . . . 6 Duelist 2 | . . . . . . . . 1 . . . . . . . . . 1 Sentry 4 | . . . 2 1 1 . . . . . . . . . . . . . Specialist 1 | . . . . . . . . . . . . . . . . . 1 . Hunter 3 | . . . . . 1 . . . . . . . . . . . . 2 Programmer 17 | . . . . . . 1 . . . . . . . . . . . 16 Subdweller 5 | . . 5 . . . . . . . . . . . . . . . . Best Kill Streak 5 | . . 2 4 1 2 1 . 4 . . . . . . . . 1 5 Combat Bots Only 4 | . . 2 4 1 1 1 . 4 . . . . . . . . 1 4 Max Kills in Single Turn 2 | . . 1 2 1 1 1 . 1 . . . . . . . . 1 2 Gunslinging 1 | . . . 1 . . . . . . . . . . . . . . . Exploded 1 | . . . . . . . . . . . . . . . . . . 1 Melee . | . . . . . . . . . . . . . . . . . . . Uniques/NPCs Destroyed . | . . . . . . . . . . . . . . . . . . . Combat | -11 -10 -10 -8 -7 -6 -6 -6 -5 -5 -5 -4 -4 -4 -3 -3 -2 -2 -1 -------- Run | Yrd Mat Sub Mat Fac Fac Low Dat Pro Fac DSF Fac Upp Upp Res Qua Res DSF Acc Hostile Shots Fired 1203 | . . 37 68 33 48 6 . 190 . 9 13 5 24 10 . . 27 733 Missed 411 | . . 12 12 11 18 3 . 59 . 3 2 1 10 2 . . 6 272 Damage Taken 15803 | . . 565 646 164 450 46 . 2542 . 512 263 70 205 216 60 . 1142 8922 Core 2831 | . . 96 16 31 33 . . 552 . 427 70 . . . . . . 1606 Absorbed by Shields 470 | . . . . . . . . . . 39 . . . . . . 46 385 Redirected to Shielding 117 | . . . . . . . . . . . . . . . . . 117 . Ignored by Resistances 42 | . . . 42 . . . . . . . . . . . . . . . Regen/Repaired (Parts) 107 | . . . . 107 . . . . . . . . . . . . . . Core Remaining (%) 80 | 100 . 61 97 95 . . . 31 . 57 . . 93 . 92 . 100 . Volleys Fired 234 | . . 29 29 5 10 10 . 34 . . . 3 1 . . . 5 108 Largest 3 | . . 2 2 3 3 3 . 3 . . . 1 2 . . . 2 3 Hottest 195 | . . 60 53 123 121 121 . 137 . . . 20 85 . . . 130 195 Shots Fired 503 | . . 56 58 15 25 20 . 88 . . . 3 2 . . . 10 226 Gun 451 | . . 54 58 15 25 20 . 83 . . . . 1 . . . 10 185 Cannon 48 | . . 2 . . . . . 5 . . . . . . . . . 41 Launcher . | . . . . . . . . . . . . . . . . . . . Special 4 | . . . . . . . . . . . . 3 1 . . . . . Kinetic 348 | . . 39 58 10 20 15 . 83 . . . . . . . . . 123 Thermal 141 | . . 17 . 5 5 5 . . . . . 3 2 . . . 10 94 Explosive . | . . . . . . . . . . . . . . . . . . . Electromagnetic 14 | . . . . . . . . 5 . . . . . . . . . 9 Robot Hit Streak 13 | . . 5 11 6 10 5 . 9 . . . 4 . . . . 4 13 Robot Miss Streak 5 | . . 3 3 1 2 1 . 5 . . . . 2 . . . 4 3 Penetration Max 1 | . . . . . 1 . . 1 . . . . . . . . . 1 Secondary Targets 7 | . . 1 2 . . . . 4 . . . . . . . . . . Max Gunslinging Chain 1 | . . 1 1 . . . . 1 . . . . . . . . . . Shots Hit Robots 320 | . . 32 40 8 19 15 . 61 . . . 3 . . . . 6 136 Core Hits 149 | . . 15 24 3 8 4 . 25 . . . 2 . . . . 3 65 Critical Kills 6 | . . . . . . . . 1 . . . . . . . . . 5 Critical Parts Destroyed 4 | . . . . . 1 . . 1 . . . . . . . . . 2 Critical Strikes 18 | . . . . . 1 . . 2 . . . . . . . . . 15 Burn 6 | . . . . . . . . . . . . . . . . . . 6 Destroy 9 | . . . . . 1 . . 1 . . . . . . . . . 7 Blast 2 | . . . . . . . . . . . . . . . . . . 2 Smash 1 | . . . . . . . . 1 . . . . . . . . . . Melee Attacks 14 | . . . . . . 1 . 1 . . . . . 2 . . . 10 Impact 12 | . . . . . . 1 . 1 . . . . . 2 . . . 8 Slashing 2 | . . . . . . . . . . . . . . . . . . 2 Piercing . | . . . . . . . . . . . . . . . . . . . Sneak Attacks . | . . . . . . . . . . . . . . . . . . . Combat Hostiles . | . . . . . . . . . . . . . . . . . . . Follow-up Attacks . | . . . . . . . . . . . . . . . . . . . Damage Inflicted 7703 | . . 426 608 165 288 188 . 1292 . . . 50 . . . . 185 4501 Guns 6375 | . . 426 608 165 288 188 . 1230 . . . . . . . . 185 3285 Cannons 996 | . . . . . . . . 33 . . . . . . . . . 963 Explosions 237 | . . . . . . . . . . . . . . . . . . 237 Melee 29 | . . . . . . . . 29 . . . . . . . . . . Ramming 16 | . . . . . . . . . . . . . . . . . . 16 Kinetic 5242 | . . 281 608 116 253 188 . 1230 . . . . . . . . . 2566 Thermal 2008 | . . 145 . 49 35 . . . . . . 50 . . . . 185 1544 Explosive 237 | . . . . . . . . . . . . . . . . . . 237 Electromagnetic 171 | . . . . . . . . 33 . . . . . . . . . 138 Impact 29 | . . . . . . . . 29 . . . . . . . . . . Slashing . | . . . . . . . . . . . . . . . . . . . Piercing . | . . . . . . . . . . . . . . . . . . . Highest Corruption 24 | . . . . . . . . . . . . . . . . . 4 24 Average Corruption 10 | . . . . . . . . . . . . . . . . . 3 11 Corruption Purged . | . . . . . . . . . . . . . . . . . . . Corruption Blocked . | . . . . . . . . . . . . . . . . . . . Effects 51 | . . . . . . . . . . . . . . . . . 1 50 Message Errors 6 | . . . . . . . . . . . . . . . . . . 6 Matter Fused 9 | . . . . . . . . . . . . . . . . . . 9 Heat Flow Errors 6 | . . . . . . . . . . . . . . . . . . 6 Energy Discharges 5 | . . . . . . . . . . . . . . . . . 1 4 Parts Rejected 1 | . . . . . . . . . . . . . . . . . . 1 Data Loss (minor) 8 | . . . . . . . . . . . . . . . . . . 8 Data Loss (major) 2 | . . . . . . . . . . . . . . . . . . 2 Misfires 2 | . . . . . . . . . . . . . . . . . . 2 Misdirections 3 | . . . . . . . . . . . . . . . . . . 3 Weapon Failures 9 | . . . . . . . . . . . . . . . . . . 9 Overload Shots . | . . . . . . . . . . . . . . . . . . . Overflow Damage 122 | . . . . . . . . 29 . . . . . . . . . 93 Projectiles . | . . . . . . . . . . . . . . . . . . . Explosions 93 | . . . . . . . . . . . . . . . . . . 93 Melee 29 | . . . . . . . . 29 . . . . . . . . . . Knockbacks 5 | . . . . . . . . . . . . . . . . . . 5 Impact . | . . . . . . . . . . . . . . . . . . . Kinetic 5 | . . . . . . . . . . . . . . . . . . 5 Secondary . | . . . . . . . . . . . . . . . . . . . Self-Inflicted Damage 129 | . . . . . . . . . . . . . . . . . . 129 Shots 1 | . . . . . . . . . . . . . . . . . . 1 Rammed 1 | . . . . . . . . . . . . . . . . . . 1 Targets Rammed 1 | . . . . . . . . . . . . . . . . . . 1 Kicked . | . . . . . . . . . . . . . . . . . . . Crushed . | . . . . . . . . . . . . . . . . . . . Highest Temperature 311 | . . . 61 234 132 200 . 311 . . . . . . . . . 181 Average Temperature 74 | . . . 16 109 58 108 . 113 . . . . . . . . . 61 Received Heat Transfer 1844 | . . 78 306 54 12 . . 1159 . . 45 . . 45 . . . 145 Effects 1 | . . . . . . . . 1 . . . . . . . . . . Matter Decay 1 | . . . . . . . . 1 . . . . . . . . . . Siege Activations . | . . . . . . . . . . . . . . . . . . . Robots Corrupted . | . . . . . . . . . . . . . . . . . . . Combat Hostiles . | . . . . . . . . . . . . . . . . . . . Parts Fried 1 | . . . . . . . . . . . . . . . . . . 1 Impact Corruptions 1 | . . . . . . . . 1 . . . . . . . . . . Robots Melted 1 | . . . . . . . . . . . . . . . . . . 1 Combat Hostiles 1 | . . . . . . . . . . . . . . . . . . 1 Parts Melted 14 | . . 1 . . . . . . . . . . . . . . . 13 Heat Transferred 3396 | . . 325 . 111 74 . . . . . . 111 . . . . 222 2553 Parts Sabotaged . | . . . . . . . . . . . . . . . . . . . Parts Stolen . | . . . . . . . . . . . . . . . . . . . Parts Stripped . | . . . . . . . . . . . . . . . . . . . Power Chain Reactions . | . . . . . . . . . . . . . . . . . . . Alert | -11 -10 -10 -8 -7 -6 -6 -6 -5 -5 -5 -4 -4 -4 -3 -3 -2 -2 -1 ------- Run | Yrd Mat Sub Mat Fac Fac Low Dat Pro Fac DSF Fac Upp Upp Res Qua Res DSF Acc Peak Influence 612 | . . . 371 145 80 . . . 612 428 234 . . 94 68 38 43 421 Initial 612 | . . . . 100 7 . . . 612 428 219 . . 69 52 38 28 28 Average 110 | . . . 173 79 18 . . . 612 420 222 . . 76 62 38 25 158 Maximum Alert Level 2 | . . . 1 . . . . . 2 2 1 . . . . . . 2 Low Security (%) 81 | 100 100 . 59 100 100 . . . . . . . . 100 100 100 100 71 Level 1 16 | . . . 40 . . . . . . . 100 . . . . . . 25 Level 2 2 | . . . . . . . . . 100 100 . . . . . . . 3 Level 3 . | . . . . . . . . . . . . . . . . . . . Level 4 . | . . . . . . . . . . . . . . . . . . . Level 5 . | . . . . . . . . . . . . . . . . . . . High Security . | . . . . . . . . . . . . . . . . . . . Max Security . | . . . . . . . . . . . . . . . . . . . Squads Dispatched 7 | . . . 1 1 . . . 1 . . . . . . . . 1 3 Investigation . | . . . . . . . . . . . . . . . . . . . Extermination 4 | . . . . 1 . . . . . . . . . . . . . 3 Reinforcement 2 | . . . 1 . . . . . . . . . . . . . 1 . Assault 1 | . . . . . . . . 1 . . . . . . . . . . Garrison . | . . . . . . . . . . . . . . . . . . . Intercept . | . . . . . . . . . . . . . . . . . . . Searches Triggered . | . . . . . . . . . . . . . . . . . . . Construction Impeded . | . . . . . . . . . . . . . . . . . . . Haulers Reinforced . | . . . . . . . . . . . . . . . . . . . Active Scanning Responses . | . . . . . . . . . . . . . . . . . . . Cargo Convoy Interrupts . | . . . . . . . . . . . . . . . . . . . Stealth | -11 -10 -10 -8 -7 -6 -6 -6 -5 -5 -5 -4 -4 -4 -3 -3 -2 -2 -1 --------- Run | Yrd Mat Sub Mat Fac Fac Low Dat Pro Fac DSF Fac Upp Upp Res Qua Res DSF Acc Distress Signals 1 | . . . 1 . . . . . . . . . . . . . . . Communications Jammed 54 | . . . . . . . . . . . . . . . . . . 54 Distress Signals 53 | . . . . . . . . . . . . . . . . . . 53 Times Spotted 138 | . . 14 21 2 3 1 . 27 2 1 1 6 3 1 . . 3 53 Peak Tracking Total 13 | . . 6 5 1 2 1 . 13 4 1 1 7 3 2 . . 2 10 Tactical Retreats 12 | . . 1 2 . . . . 2 . . . . . . . . 3 4 Traps | -11 -10 -10 -8 -7 -6 -6 -6 -5 -5 -5 -4 -4 -4 -3 -3 -2 -2 -1 ------- Run | Yrd Mat Sub Mat Fac Fac Low Dat Pro Fac DSF Fac Upp Upp Res Qua Res DSF Acc Traps Triggered 5 | . . . . . . . . . . 1 . . . 1 1 . 2 . Indirectly . | . . . . . . . . . . . . . . . . . . . Trap Hack Attempts . | . . . . . . . . . . . . . . . . . . . Triggered . | . . . . . . . . . . . . . . . . . . . Disarmed . | . . . . . . . . . . . . . . . . . . . Reprogrammed . | . . . . . . . . . . . . . . . . . . . Reused . | . . . . . . . . . . . . . . . . . . . Traps Extracted . | . . . . . . . . . . . . . . . . . . . Installed . | . . . . . . . . . . . . . . . . . . . Triggered 1 | . . . . . . . . . . . . 1 . . . . . . Machines | -11 -10 -10 -8 -7 -6 -6 -6 -5 -5 -5 -4 -4 -4 -3 -3 -2 -2 -1 ---------- Run | Yrd Mat Sub Mat Fac Fac Low Dat Pro Fac DSF Fac Upp Upp Res Qua Res DSF Acc Machines Disabled 5 | . . . . 1 . 1 . . . . . . . . . . 1 2 Max in Single Turn 2 | . . . . 1 . 1 . . . . . . . . . . 1 2 Garrison Access 1 | . . . 1 . . . . . . . . . . . . . . . Machines Repaired . | . . . . . . . . . . . . . . . . . . . Machines Dismantled . | . . . . . . . . . . . . . . . . . . . Machines Sabotaged . | . . . . . . . . . . . . . . . . . . . Overloaded Fab Kills . | . . . . . . . . . . . . . . . . . . . Hacking | -11 -10 -10 -8 -7 -6 -6 -6 -5 -5 -5 -4 -4 -4 -3 -3 -2 -2 -1 --------- Run | Yrd Mat Sub Mat Fac Fac Low Dat Pro Fac DSF Fac Upp Upp Res Qua Res DSF Acc Machines Accessed 25 | . . 1 3 4 . 1 4 . 1 . 1 . . 3 1 1 . 5 Terminals 12 | . . . 2 3 . . . . 1 . . . . 2 1 1 . 2 Fabricators 1 | . . . . . . . . . . . 1 . . . . . . . Repair Stations 3 | . . . . 1 . . . . . . . . . 1 . . . 1 Recycling Units . | . . . . . . . . . . . . . . . . . . . Scanalyzers . | . . . . . . . . . . . . . . . . . . . Garrison Access 3 | . . . 1 . . . . . . . . . . . . . . 2 Total Hacks 68 | . . 2 5 8 . 1 32 . 1 . 1 . . 9 2 1 . 6 Successful 48 | . . 2 1 2 . 1 32 . 1 . . . . 4 2 1 . 2 Failed 20 | . . . 4 6 . . . . . . 1 . . 5 . . . 4 Catastrophic 6 | . . . 1 1 . . . . . . . . . 2 . . . 2 Database Lockouts . | . . . . . . . . . . . . . . . . . . . Manual 14 | . . . 3 6 . . . . . . 1 . . 2 1 . . 1 Terminals 25 | . . . 4 6 . . . . 1 . . . . 8 2 1 . 3 Fabricators 1 | . . . . . . . . . . . 1 . . . . . . . Repair Stations 4 | . . . . 2 . . . . . . . . . 1 . . . 1 Recycling Units . | . . . . . . . . . . . . . . . . . . . Scanalyzers . | . . . . . . . . . . . . . . . . . . . Garrison Access 3 | . . . 1 . . . . . . . . . . . . . . 2 Terminal Hacks 41 | . . 2 . . . 1 32 . 1 . . . . 2 1 1 . 1 Record 14 | . . 2 . . . 1 11 . . . . . . . . . . . Part Schematic 12 | . . . . . . . 12 . . . . . . . . . . . Robot Schematic 6 | . . . . . . . 6 . . . . . . . . . . . Prototype ID Bank 3 | . . . . . . . 3 . . . . . . . . . . . Open DSF 2 | . . . . . . . . . 1 . . . . . . 1 . . Level Access Points 1 | . . . . . . . . . . . . . . . 1 . . . Branch Access Points 1 | . . . . . . . . . . . . . . 1 . . . . Alert Level 1 | . . . . . . . . . . . . . . 1 . . . . Zone Layout 1 | . . . . . . . . . . . . . . . . . . 1 Fabricator Hacks . | . . . . . . . . . . . . . . . . . . . Repair Station Hacks 3 | . . . . 2 . . . . . . . . . . . . . 1 Scan Component 2 | . . . . 1 . . . . . . . . . . . . . 1 Repair 1 | . . . . 1 . . . . . . . . . . . . . . Recycling Unit Hacks . | . . . . . . . . . . . . . . . . . . . Scanalyzer . | . . . . . . . . . . . . . . . . . . . Garrison Access Hacks 1 | . . . 1 . . . . . . . . . . . . . . . Seal Access 1 | . . . 1 . . . . . . . . . . . . . . . Unauthorized Hacks 3 | . . . . . . . . . . . . . . 2 1 . . . Terminals 3 | . . . . . . . . . . . . . . 2 1 . . . Botnet 3 | . . . . . . . . . . . . . . 2 1 . . . Fabricators . | . . . . . . . . . . . . . . . . . . . Repair Stations . | . . . . . . . . . . . . . . . . . . . Recycling Units . | . . . . . . . . . . . . . . . . . . . Scanalyzers . | . . . . . . . . . . . . . . . . . . . Garrison Access . | . . . . . . . . . . . . . . . . . . . Data Cores Recovered . | . . . . . . . . . . . . . . . . . . . Used . | . . . . . . . . . . . . . . . . . . . Hacking Detections 16 | . . . 2 4 . . . . . . 1 . . 3 1 . . 5 Full Trace Events . | . . . . . . . . . . . . . . . . . . . Feedback Events . | . . . . . . . . . . . . . . . . . . . Feedback Blocked . | . . . . . . . . . . . . . . . . . . . Robot Schematics Acquired 6 | . . . . . . . 6 . . . . . . . . . . . Robots Built . | . . . . . . . . . . . . . . . . . . . Authchips . | . . . . . . . . . . . . . . . . . . . Time . | . . . . . . . . . . . . . . . . . . . Total Robot Build Rating . | . . . . . . . . . . . . . . . . . . . Part Schematics Acquired 12 | . . . . . . . 12 . . . . . . . . . . . Parts Built . | . . . . . . . . . . . . . . . . . . . Authchips . | . . . . . . . . . . . . . . . . . . . Time . | . . . . . . . . . . . . . . . . . . . Total Part Build Rating . | . . . . . . . . . . . . . . . . . . . Parts Repaired 1 | . . . . 1 . . . . . . . . . . . . . . Time 38 | . . . . 38 . . . . . . . . . . . . . . Parts Recycled . | . . . . . . . . . . . . . . . . . . . Recycled Matter . | . . . . . . . . . . . . . . . . . . . Retrieved Matter . | . . . . . . . . . . . . . . . . . . . Retrieved Components . | . . . . . . . . . . . . . . . . . . . Parts Scanalyzed . | . . . . . . . . . . . . . . . . . . . Part Schematics Acquired . | . . . . . . . . . . . . . . . . . . . Parts Damaged . | . . . . . . . . . . . . . . . . . . . Bothacking | -11 -10 -10 -8 -7 -6 -6 -6 -5 -5 -5 -4 -4 -4 -3 -3 -2 -2 -1 ------------ Run | Yrd Mat Sub Mat Fac Fac Low Dat Pro Fac DSF Fac Upp Upp Res Qua Res DSF Acc Used RIF Installer . | . . . . . . . . . . . . . . . . . . . Robots Hacked . | . . . . . . . . . . . . . . . . . . . Non-combat . | . . . . . . . . . . . . . . . . . . . Combat . | . . . . . . . . . . . . . . . . . . . Robot Hacks Applied . | . . . . . . . . . . . . . . . . . . . Relay Couplers Released . | . . . . . . . . . . . . . . . . . . . Fabnet Peak Effective % . | . . . . . . . . . . . . . . . . . . . Robots Rewired . | . . . . . . . . . . . . . . . . . . . Allies Hacked . | . . . . . . . . . . . . . . . . . . . Hacks Repelled . | . . . . . . . . . . . . . . . . . . . Allies | -11 -10 -10 -8 -7 -6 -6 -6 -5 -5 -5 -4 -4 -4 -3 -3 -2 -2 -1 -------- Run | Yrd Mat Sub Mat Fac Fac Low Dat Pro Fac DSF Fac Upp Upp Res Qua Res DSF Acc Total Allies 1 | . . . . . . . . 1 . . . . . . . . . . Largest Group 1 | . . . . . . . . 1 . . . . . . . . . . Highest-Rated Group 96 | . . . . . . . . 96 . . . . . . . . . . Highest-Rated Ally 96 | . . . . . . . . 96 . . . . . . . . . . Total Orders 10 | . . . . . . . . . . . 2 2 1 1 . 3 1 . FOLLOW 1 | . . . . . . . . . . . . . . . . . 1 . EXPLORE 8 | . . . . . . . . . . . 2 2 1 1 . 2 . . RETURN 1 | . . . . . . . . . . . . . . . . 1 . . Ally Attacks 8 | . . . . . . . . 8 . . . . . . . . . . Total Damage 253 | . . . . . . . . 253 . . . . . . . . . . Kills 2 | . . . . . . . . 2 . . . . . . . . . . Allies Corrupted . | . . . . . . . . . . . . . . . . . . . Allies Melted . | . . . . . . . . . . . . . . . . . . . Intel | -11 -10 -10 -8 -7 -6 -6 -6 -5 -5 -5 -4 -4 -4 -3 -3 -2 -2 -1 ------- Run | Yrd Mat Sub Mat Fac Fac Low Dat Pro Fac DSF Fac Upp Upp Res Qua Res DSF Acc Robot Analysis Total . | . . . . . . . . . . . . . . . . . . . Derelict Logs Recovered 3 | . . 1 . . . 1 . 1 . . . . . . . . . . Drone Launches 10 | . . . . . . . . . . . 4 1 1 1 . 2 1 . Drone Recoveries 8 | . . . . . . . . . . . 3 1 1 1 . 2 . . Exploration | -11 -10 -10 -8 -7 -6 -6 -6 -5 -5 -5 -4 -4 -4 -3 -3 -2 -2 -1 ------------- Run | Yrd Mat Sub Mat Fac Fac Low Dat Pro Fac DSF Fac Upp Upp Res Qua Res DSF Acc Turns Passed 7024 | 60 361 1074 472 552 364 739 119 780 26 43 96 344 105 228 99 88 159 1315 Spaces Moved 3792 | 40 11 598 209 300 209 473 81 462 41 61 86 188 25 116 58 49 86 699 Core 162 | 4 . . . . . . . 11 41 58 45 . . . . . . 3 Treads 2560 | . . 597 209 300 209 473 81 342 . 3 41 99 . 85 58 49 14 . Legs 959 | 36 11 1 . . . . . . . . . 89 25 31 . . 72 694 Wheels 109 | . . . . . . . . 109 . . . . . . . . . . Hover 2 | . . . . . . . . . . . . . . . . . . 2 Flight . | . . . . . . . . . . . . . . . . . . . Fastest Speed 50 | 50 120 120 152 151 148 148 148 100 50 50 50 120 120 120 170 170 120 50 Average Speed 140 | 114 120 159 152 151 150 148 148 143 50 55 108 146 120 156 170 170 128 114 Slowest Speed 360 | 120 120 160 160 151 151 148 148 250 50 170 200 170 120 170 170 170 170 360 Overloaded Moves . | . . . . . . . . . . . . . . . . . . . Propulsion Burnouts . | . . . . . . . . . . . . . . . . . . . Robots Hopped . | . . . . . . . . . . . . . . . . . . . Cave-ins Triggered . | . . . . . . . . . . . . . . . . . . . Teleports 1 | . . . . . . . . . . . . . . . 1 . . . Exploration Rate (%) 32 | 4 3 44 29 10 8 66 71 63 2 81 3 62 30 11 17 4 81 20 Regions Visited 18 Branch Regions 7 Pre-discovered Areas 1 | . . . . . . . 1 . . . . . . . . . . . Known Exits Taken 5 | . . . 1 . . . . . 1 . . . . 1 1 1 . . Unknown Exits Taken 11 | 1 1 1 . 1 1 1 1 1 . . 1 1 1 . . . . . Scrap Searched 9 | . . 5 . . . 2 . 2 . . . . . . . . . . Spaces Dug 10 | . . . . . . . . . . . . . . 1 . . . 9 Terrain Destroyed 51 | . . . 1 . 1 . . 3 . . . . . 1 . . . 45 Melee 9 | . . . . . . . . . . . . . . 1 . . . 8 Projectile 18 | . . . 1 . . . . 3 . . . . . . . . . 14 AOE 23 | . . . . . . . . . . . . . . . . . . 23 Terrain Rammed . | . . . . . . . . . . . . . . . . . . . Walls Destroyed . | . . . . . . . . . . . . . . . . . . . Machines Disabled . | . . . . . . . . . . . . . . . . . . . Actions | -11 -10 -10 -8 -7 -6 -6 -6 -5 -5 -5 -4 -4 -4 -3 -3 -2 -2 -1 --------- Run | Yrd Mat Sub Mat Fac Fac Low Dat Pro Fac DSF Fac Upp Upp Res Qua Res DSF Acc Total 5037 | 51 359 670 313 394 240 494 80 510 47 67 88 249 97 159 58 54 119 988 Wait 736 | . 348 5 38 62 7 2 . 1 1 . 2 52 72 36 . 6 3 101 Move 3774 | 39 10 597 208 299 208 472 80 461 40 60 85 187 24 115 57 48 85 699 Hop . | . . . . . . . . . . . . . . . . . . . Pick Up 72 | 6 . 12 14 9 5 2 . 4 . . . 1 . 1 . . 7 11 Fast Attach 61 | 5 . 2 2 2 . 2 . . . 4 1 4 . 2 1 . 11 25 Attach 43 | . 1 3 6 2 3 . . 5 3 . . 1 . 1 . . 3 15 Detach 5 | . . 1 . . . . . . 3 . . . . 1 . . . . Swap 33 | 1 . 5 5 5 2 2 . 1 . . . . . . . . . 12 Drop 52 | . . 12 11 10 5 3 . 3 . . . . . 1 . . . 7 Fire 234 | . . 29 29 5 10 10 . 34 . . . 3 1 . . . 5 108 Melee 14 | . . . . . . 1 . 1 . . . . . 2 . . . 10 Ram . | . . . . . . . . . . . . . . . . . . . Kick . | . . . . . . . . . . . . . . . . . . . Crush . | . . . . . . . . . . . . . . . . . . . Escape Stasis 8 | . . . . . . . . . . 3 . . . . . . 5 . Rewire 1 | . . . . . . . . . . . . 1 . . . . . . Trap . | . . . . . . . . . . . . . . . . . . . Miscellaneous 4 | . . 4 . . . . . . . . . . . . . . . . Route ------- -11/Scrapyard -10/Materials -10/Subcaves -8/Materials (discovered 2 exits: *Fac x2) -7/Factory -6/Factory -6/Lower Caves (discovered 2 exits: [*Low] / *Dat) -6/Data Miner -5/Proximity Caves -5/Factory (discovered 2 exits: Fac / DSF) -5/DSF -4/Factory -4/Upper Caves -4/Upper Caves -3/Research (discovered 2 exits: *Qua x2) -3/Quarantine -2/Research -2/DSF -1/Access History --------- Turn | Location | Event 19 | -11/Scrapyard | Discovered new exit (range 15) 61 | -11/Scrapyard | Entered Materials 310 | -10/Materials | Build established: Mutant 411 | -10/Materials | Discovered new exit (range 5) 422 | -10/Materials | Entered Subcaves 551 | -10/Subcaves | Ambushed by swarm of Subdwellers 554 | -10/Subcaves | Ambushed by Subdwellers from Twisted Machinery 918 | -10/Subcaves | A swath of the cavern ceiling suddenly collapsed 1177 | -10/Subcaves | Disturbed a concealed Subdweller 1306 | -10/Subcaves | Shifting Twisted Machinery released Hvy. Battle Rifle 1338 | -10/Subcaves | Learned location of 1 exit from Materials 1350 | -10/Subcaves | Visited Clippyterm 1464 | -10/Subcaves | Shifting Twisted Machinery released Mak. Thermal Plating 1480 | -10/Subcaves | Shifting Twisted Machinery released Scrap Shield 1482 | -10/Subcaves | Discovered new exit (range 7) 1496 | -10/Subcaves | Entered Materials 1496 | -8/Materials | Evolved 4 slots: Propulsion x2, Utility x2 1497 | -8/Materials | Identified exit to Factory 1956 | -8/Materials | Discovered exit to Factory (range 5) 1968 | -8/Materials | Entered Factory 1968 | -7/Factory | Evolved 2 slots: Propulsion x1, Weapon x1 2116 | -7/Factory | Repaired Adv. Treads 2275 | -7/Factory | Build established: Tank 2495 | -7/Factory | Discovered new exit (range 13) 2520 | -7/Factory | Entered another Factory area 2520 | -6/Factory | Evolved 2 slots: Utility x2 2822 | -6/Factory | Build established: Gunner 2853 | -6/Factory | Discovered new exit (range 9) 2884 | -6/Factory | Entered Lower Caves 2958 | -6/Lower Caves | Found Alien Artifact 2958 | -6/Lower Caves | Identified Dimensional Node Initializer 2958 | -6/Lower Caves | Initialized slip node 3011 | -6/Lower Caves | Learned location of 1 exit from Factory 3620 | -6/Lower Caves | Discovered new exit (range 6) 3621 | -6/Lower Caves | A Derelict revealed a hidden shortcut to meet someone special 3623 | -6/Lower Caves | Entered Data Miner 3623 | -6/Data Miner | Discovered new exit (range 6) 3652 | -6/Data Miner | Met Data Miner 3684 | -6/Data Miner | Learned location of Section 7 (-2) 3684 | -6/Data Miner | Acquired the access code to Warlord's prototype stash 3711 | -6/Data Miner | Received God Mode back door access code from Data Miner 3742 | -6/Data Miner | Entered Proximity Caves 4017 | -5/Proximity Caves | Spotter reported a threat 4057 | -5/Proximity Caves | Learned Factory emergency access door positions 4133 | -5/Proximity Caves | Spotter reported a threat 4281 | -5/Proximity Caves | Spotter reported a threat 4324 | -5/Proximity Caves | Escorted by Enhanced Grunt 4353 | -5/Proximity Caves | Lost 6 parts (1p3n2w) 4420 | -5/Proximity Caves | Spotter reported a threat 4433 | -5/Proximity Caves | Attracted the attention of an 0b10 outpost 4496 | -5/Proximity Caves | Discovered new exit (range 15) 4511 | -5/Proximity Caves | Core integrity fell below 50% 4522 | -5/Proximity Caves | Entered Factory 4522 | -5/Factory | Evolved 2 slots: Propulsion x1, Utility x1 4523 | -5/Factory | Identified exit to Factory 4545 | -5/Factory | Lost 9 parts (1p3n2u3w) 4548 | -5/Factory | Identified exit to DSF 4548 | -5/Factory | Entered DSF 4576 | -5/DSF | Additional patrols routed to DSF 4584 | -5/DSF | Discovered exit to Factory (range 15) 4591 | -5/DSF | Entered Factory 4591 | -4/Factory | Evolved 2 slots: Power x1, Utility x1 4603 | -4/Factory | Build established: Mutant 4627 | -4/Factory | Discovered new exit (range 35) 4687 | -4/Factory | Entered Upper Caves 4687 | -4/Upper Caves | Accompanied by 1 ally 4775 | -4/Upper Caves | Discovered new exit (range 106) 5031 | -4/Upper Caves | Entered another Upper Caves area 5042 | -4/Upper Caves | Discovered new exit (range 23) 5136 | -4/Upper Caves | Entered Research 5136 | -3/Research | Evolved 2 slots: Propulsion x1, Utility x1 5227 | -3/Research | Identified exit to Quarantine 5364 | -3/Research | Entered Quarantine 5375 | -3/Quarantine | Found Alien Artifact 5375 | -3/Quarantine | Identified Transdimensional Reconstructor 5375 | -3/Quarantine | Warped through subspace 5398 | -3/Quarantine | Identified exit to Research 5463 | -3/Quarantine | Entered Research 5463 | -2/Research | Evolved 2 slots: Propulsion x1, Utility x1 5549 | -2/Research | Identified exit to DSF 5551 | -2/Research | Entered DSF 5588 | -2/DSF | Additional patrols routed to DSF 5674 | -2/DSF | Lost 3 parts (1n2u) 5694 | -2/DSF | Discovered new exit (range 13) 5710 | -2/DSF | Entered Access 5710 | -1/Access | Evolved 2 slots: Propulsion x2 6244 | -1/Access | Spotted B-99 Colossus 6433 | -1/Access | Lost 16 parts (2p6n4u4w) 6494 | -1/Access | System corruption reached 10% 6803 | -1/Access | Build established: Scavenger-Gunner 6814 | -1/Access | Lost 3 parts (2n1u) 6898 | -1/Access | Lost 3 parts (2n1u) 6975 | -1/Access | Core integrity fell below 50% 7010 | -1/Access | Core integrity fell below 20% 7025 | -1/Access | Core destroyed Last Messages --------------- K-01 Serf collects debris. The unstable cave ceiling collapses. Slug penetrates Wall. Centrium Leg blasted off. Knocked back. Imp. Target Analyzer destroyed. Knocked back. Slug penetrates Wall. Penetrated by Slug. Slug penetrates Wall. Slug penetrates A-15 Conveyor. U-05 Engineer lays Concrete. Penetrated by Slug. Slug penetrates Wall. Penetrated by Slug. U-05 Engineer lays Concrete. Centrium Leg destroyed. Slug penetrates Wall. Slammed into K-01 Serf. K-01 Serf destroyed. Map ----- +----------------------------------------------------+ | #????????# #?????????????????? | | #????????# #?????????????????? | | #???????## #?????????????????? | | #???????# #?????????????????? | | #???????# #?????????????????? | | #???????# #?????????????????? | | #???????# #?????????????????? | | #???????#| #?????????????????? | | ########|###+###### #####+###########?????????? | | |%*%[ ! % "% #?????????? | | =!*%= ! * " !! #?????????? | | # !! #?????????? | | % + ! *#?????????? | | ""#####% #?????????? | | # #?# #?????????? | | " ###?########?????????? | | ################### # #??????????????????? | | ??????????????????# A# ###??????????????????? | | ??????????????????# = %#?#????????????????????? | | ???????????######## #??????????????????????? | | ???????????# g #??????????????????????? | | ???????????# #??????????????????????? | | ???????????# #??????????????????????? | | ???????????# [[/ #??????????????????????? | | ???????????# [[ #??????????????????????? | | ???????????# [[ @#??????????????????????? | | ???????????+ ! %+*?????????????????????? | | ???????????# =# ???????????????????? | | ???????????# R # "?????????????????? | | ???????????# #? ???????????????? | | ????????????#### #?? ?????????????? | | ???????????????# #??? ????????????? | | ???????????????# #???####+###???????????? | | ???????????????# R #??????????????????????? | | ???????????????#### ???????????????????????? | | ??????????????????# ???????????????????????? | | ??????????????????# ???????????????????????? | | ??????????????????#R ???????????????????????? | | ??????????????????#R ???????????????????????? | | ????????????????????? ???????????????????????? | | ??????????????????????? ???????????????????????? | | ?????????????????????????????????????????????????? | | ?????????????????????????????????????????????????? | | ?????????????????????????????????????????????????? | | ?????????????????????????????????????????????????? | | ?????????????????????????????????????????????????? | | ?????????????????????????????????????????????????? | | ?????????????????????????????????????????????????? | | ?????????????????????????????????????????????????? | | ?????????????????????????????????????????????????? | +----------------------------------------------------+ Best States ------------- Heat Dissipation 71 Energy Generation 39 Energy Capacity 300 Matter Stores 300 Matter Capacity 300 Sight Range 21 Terrain Scan Range 16 Terrain Scan Density 10 Jamming Range 16 Armor Coverage 800 Resistance: KI 20 Propulsion Shielding 66 Weapon Shielding 66 Evasion (%) 61 Targeting Accuracy 8 Target Analysis 12 Core Analysis 6 Recoil Reduction 5 Offensive Hacking 21 Defensive Hacking 10 Item Schematics ----------------- Combat Drone Bay | -6/Data Miner | Free Lgt. Regenerative Plating | -6/Data Miner | Free Imp. Energy Well | -6/Data Miner | Free Cld. Gravmag System | -6/Data Miner | Free Neutron Cannon | -6/Data Miner | Free Imp. Gyrokinetic Inverter | -6/Data Miner | Free Quantum Capacitor | -6/Data Miner | Free Matter Neutralizer | -6/Data Miner | Free Mni. Drone Bay | -6/Data Miner | Free Adv. Target Analyzer | -6/Data Miner | Free Lgt. Antimatter Reactor | -6/Data Miner | Free Adv. Recalibrator | -6/Data Miner | Free Robot Schematics ------------------ L-41 Fighter | -6/Data Miner | Free H-66 Slayer | -6/Data Miner | Free M-22 Extractor | -6/Data Miner | Free G-50 Soldier | -6/Data Miner | Free H-77 Assassin | -6/Data Miner | Free M-36 Artificer | -6/Data Miner | Free Fabricated ------------ Nothing Alien Tech Used ----------------- Dimensional Node Initializer Transdimensional Reconstructor Achievements -------------- The Oracle Total Silence Challenges ------------ None Game ------ Seed PlasmaTrapPenetrator Manual? 0 Play Time 02:00:30 Cumulative 29.1 hours Start 2024.05.02 @ 16:35:56 End 2024.05.02 @ 18:39:31 Sessions 1 Manual Loads 0 Difficulty Rogue Special Mode None Game No. 29 Rogue 29 Adventurer 0 Explorer 0 Win Type - Total 0 Types 0/0/0/0/0/0/0/0/0 Lore% 30 Gallery% 34 Achievement% 30 Wizard Run 0 Options --------- Layout 1 ASCII 0 Keyboard 0 Movement Mouse Keybinds 0 Fullscreen 2 Font 24/Smallcaps Map View 50x35 Zoom Use 0% Tactical HUD 0 Map Filters NONE Filters NONE Steam 0 RUN: 7f548804-1777-42ab-96cc-3d1017e7a1e0